[Event "FishPartners Open 2018"]
[Site "Spakenburg"]
[Date "2018.07.07"]
[Round "2"]
[White "Dekker, Andries"]
[Black "Nijboer, Friso"]
[Result "0-1"]
[ECO "A87"]
[WhiteElo "2152"]
[BlackElo "2495"]
[Annotator "ChessBase"]
[PlyCount "66"]
[EventDate "2018.07.07"]
[EventType "swiss"]
[EventCountry "NED"]
[SourceTitle "playchess.com"]
[Source "ChessBase"]
[SourceQuality "1"]
[TimeControl "1500"]

1. d4 {[%emt 0:00:03]} f5 {[%emt 0:00:01]} 2. c4 {[%emt 0:00:05]} Nf6 {[%emt 0:00:02]} 3. g3 {[%emt 0:00:02]} g6 {[%emt 0:00:01]} 4. Bg2 {[%emt 0:00:01]} Bg7 {[%emt 0:00:01]} 5. Nf3 {[%emt 0:00:02]} O-O {[%emt 0:00:05]} 6. O-O {[%emt 0:00:02]} d6 {[%emt 0:00:01]} 7. Nc3 {[%emt 0:00:02]} e6 {[%emt 0:00:02]} 8. Qc2 {[%emt 0:00:35]} Nc6 {[%emt 0:00:26]} 9. Rd1 {[%emt 0:00:41]} Qe7 {[%emt 0:01:20]} 10. e4 {[%emt 0:00:02]} e5 {[%emt 0:00:04]} 11. dxe5 {[%emt 0:02:37]} dxe5 {[%emt 0:00:02]} 12. Bg5 {[%emt 0:00:39]} fxe4 {[%emt 0:00:43]} 13. Nxe4 {[%emt 0:01:53]} Bf5 {[%emt 0:00:48]} 14. Nh4 {[%emt 0:00:58]} Nd4 {[%emt 0:00:35]} 15. Qa4 {[%emt 0:00:08]} Bg4 {[%emt 0:05:10]} 16. Rd2 {[%emt 0:02:09]} c6 {[%emt 0:00:37]} 17. c5 {[%emt 0:00:36]} Qe6 {[%emt 0:02:20]} 18. Re1 {[%emt 0:02:08]} b5 {[%emt 0:05:16]} 19. Qa3 {[%emt 0:02:56]} Qd7 {[%emt 0:01:35]} 20. Nxf6+ {[%emt 0:01:57]} Rxf6 {[%emt 0:00:04]} 21. Bxf6 {[%emt 0:01:57]} Bxf6 {[%emt 0:00:01]} 22. Qe3 {[%emt 0:00:02]} Rd8 {[%emt 0:00:00]} 23. f3 {[%emt 0:01:02]} Bh3 {[%emt 0:00:39]} 24. Rf2 Bxg2 {[%emt 0:00:21]} 25. Nxg2 {[%emt 0:00:16]} Qd5 {[%emt 0:00:01]} 26. b4 {[%emt 0:00:33]} Qc4 {[%emt 0:00:37]} 27. f4 {[%emt 0:00:23]} Nf5 {[%emt 0:00:33]} 28. Qb3 {[%emt 0:00:06]} e4 {[%emt 0:01:00]} 29. Rxe4 {[%emt 0:00:29]} Bd4 {[%emt 0:00:06]} 30. Qxc4+ {[%emt 0:00:08]} bxc4 {[%emt 0:00:01]} 31. g4 {[%emt 0:00:02]} c3 {[%emt 0:00:31]} 32. gxf5 {[%emt 0:00:15]} c2 {[%emt 0:00:02]} 33. Kf1 {[%emt 0:01:34]} c1=Q+ {[%emt 0:00:03]} 0-1

[Event "FishPartners Open 2018"]
[Site "Spakenburg"]
[Date "2018.07.07"]
[Round "2"]
[White "De Graaf, Dick"]
[Black "Beerdsen, Thomas"]
[Result "0-1"]
[ECO "B33"]
[WhiteElo "2111"]
[BlackElo "2469"]
[Annotator "ChessBase"]
[PlyCount "88"]
[EventDate "2018.07.07"]
[EventType "swiss"]
[EventCountry "NED"]
[SourceTitle "playchess.com"]
[Source "ChessBase"]
[SourceQuality "1"]
[TimeControl "1500"]

1. e4 {[%emt 0:00:01]} c5 {[%emt 0:00:02]} 2. Nf3 {[%emt 0:00:03]} Nc6 {[%emt 0:00:02]} 3. d4 {[%emt 0:00:09]} cxd4 {[%emt 0:00:02]} 4. Nxd4 {[%emt 0:00:01]} Nf6 {[%emt 0:00:01]} 5. Nc3 {[%emt 0:00:05]} h5 {[%emt 0:00:02]} 6. Nxc6 {[%emt 0:00:14]} bxc6 {[%emt 0:00:01]} 7. Bd3 {[%emt 0:00:02]} g6 {[%emt 0:00:15]} 8. O-O {[%emt 0:01:26]} Bg7 {[%emt 0:00:02]} 9. h3 {[%emt 0:00:56]} O-O {[%emt 0:00:08]} 10. f4 {[%emt 0:00:09]} d5 {[%emt 0:00:08]} 11. e5 {[%emt 0:00:10]} Nd7 {[%emt 0:02:54]} 12. e6 {[%emt 0:00:02]} Nc5 {[%emt 0:00:35]} 13. exf7+ {[%emt 0:00:18]} Kxf7 {[%emt 0:00:03]} 14. f5 {[%emt 0:00:33]} Nxd3 {[%emt 0:00:03]} 15. fxg6+ {[%emt 0:00:16]} Kg8 {[%emt 0:00:04]} 16. Qxd3 {[%emt 0:01:19]} Rxf1+ {[%emt 0:00:00]} 17. Qxf1 {[%emt 0:00:23]} Qe8 {[%emt 0:01:03]} 18. Qf3 {[%emt 0:01:57]} Qxg6 {[%emt 0:02:26]} 19. Bf4 {[%emt 0:06:38]} e5 {[%emt 0:02:18]} 20. Bh2 {[%emt 0:04:21]} e4 {[%emt 0:00:22]} 21. Qf4 {[%emt 0:00:43]} Bxh3 {[%emt 0:00:06]} 22. Bg3 {[%emt 0:00:25]} Rf8 {[%emt 0:00:05]} 23. Qd6 {[%emt 0:00:26]} Rf6 {[%emt 0:00:21]} 24. Qb8+ {[%emt 0:00:12]} Kh7 {[%emt 0:00:14]} 25. gxh3 {[%emt 0:00:13]} h4 {[%emt 0:00:04]} 26. Rf1 {[%emt 0:00:32]} Rxf1+ {[%emt 0:00:35]} 27. Kxf1 {[%emt 0:00:02]} hxg3 {[%emt 0:00:03]} 28. Kg2 {[%emt 0:01:48]} e3 {[%emt 0:02:26]} 29. Qxg3 {[%emt 0:00:01]} Qxc2+ {[%emt 0:00:03]} 30. Kf3 {[%emt 0:00:06]} Qf5+ {[%emt 0:00:06]} 31. Ke2 {[%emt 0:00:07]} Bxc3 {[%emt 0:01:18]} 32. bxc3 {[%emt 0:00:01]} Qc2+ {[%emt 0:00:02]} 33. Kf3 {[%emt 0:00:01]} Qxc3 {[%emt 0:00:11]} 34. Qh4+ {[%emt 0:00:09]} Kg6 {[%emt 0:00:07]} 35. Qg4+ {[%emt 0:00:08]} Kf6 {[%emt 0:00:04]} 36. Qd7 {[%emt 0:00:16]} e2+ {[%emt 0:00:22]} 37. Kxe2 {[%emt 0:00:01]} Qc2+ {[%emt 0:00:02]} 38. Ke1 {[%emt 0:00:04]} Qb1+ {[%emt 0:00:02]} 39. Kf2 {[%emt 0:00:02]} Qxa2+ {[%emt 0:00:02]} 40. Kg3 {[%emt 0:00:01]} Qb3+ {[%emt 0:00:04]} 41. Kh4 {[%emt 0:00:02]} Qc4+ {[%emt 0:00:06]} 42. Kh5 {[%emt 0:00:12]} Qe2+ {[%emt 0:00:03]} 43. Kh6 {[%emt 0:00:02]} Qe3+ {[%emt 0:00:03]} 44. Kh7 {[%emt 0:00:03]} Qe7+ 0-1

[Event "FishPartners Open 2018"]
[Site "Spakenburg"]
[Date "2018.07.07"]
[Round "3"]
[White "Nijboer, Friso"]
[Black "Tasc, R30 (computer)"]
[Result "1/2-1/2"]
[ECO "A08"]
[WhiteElo "2495"]
[BlackElo "2380"]
[Annotator "ChessBase"]
[PlyCount "77"]
[EventDate "2018.07.07"]
[EventType "swiss"]
[EventCountry "NED"]
[SourceTitle "playchess.com"]
[Source "ChessBase"]
[SourceQuality "1"]
[TimeControl "1500"]

1. e4 {[%emt 0:00:01]} e6 {[%emt 0:00:13]} 2. d3 {[%emt 0:00:03]} c5 {[%emt 0:00:12]} 3. Nf3 {[%emt 0:00:05]} Nc6 {[%emt 0:00:13]} 4. g3 {[%emt 0:00:02]} d5 {[%emt 0:00:11]} 5. Nbd2 {[%emt 0:00:06]} Nf6 {[%emt 0:00:12]} 6. Bg2 {[%emt 0:00:04]} Be7 {[%emt 0:00:11]} 7. O-O {[%emt 0:00:07]} O-O {[%emt 0:00:15]} 8. Re1 {[%emt 0:00:05]} b5 {[%emt 0:00:16]} 9. c3 {[%emt 0:01:12]} Bb7 {[%emt 0:00:32]} 10. e5 {[%emt 0:01:36]} Nd7 {[%emt 0:00:13]} 11. d4 {[%emt 0:00:01]} Qc7 {[%emt 0:00:33]} 12. Nf1 {[%emt 0:00:06]} cxd4 {[%emt 0:00:34]} 13. cxd4 {[%emt 0:00:01]} Rfc8 {[%emt 0:00:39]} 14. h4 {[%emt 0:01:07]} Nb4 {[%emt 0:00:31]} 15. Ne3 {[%emt 0:06:52]} Nc2 {[%emt 0:00:15]} 16. Nxc2 {[%emt 0:00:02]} Qxc2 {[%emt 0:00:16]} 17. Bf1 {[%emt 0:00:20]} Qxd1 {[%emt 0:00:28]} 18. Rxd1 {[%emt 0:00:01]} b4 {[%emt 0:00:16]} 19. Be3 {[%emt 0:00:39]} Nb6 {[%emt 0:00:25]} 20. b3 {[%emt 0:00:06]} Rc3 {[%emt 0:00:30]} 21. Rac1 {[%emt 0:01:30]} Rac8 {[%emt 0:00:26]} 22. Ne1 {[%emt 0:00:14]} f6 {[%emt 0:00:12]} 23. exf6 {[%emt 0:01:44]} gxf6 {[%emt 0:00:30]} 24. Bd2 {[%emt 0:00:06]} Rxc1 {[%emt 0:00:36]} 25. Rxc1 {[%emt 0:00:01]} Rxc1 {[%emt 0:00:24]} 26. Bxc1 {[%emt 0:00:01]} e5 {[%emt 0:00:18]} 27. Nd3 {[%emt 0:00:33]} Bd6 {[%emt 0:00:12]} 28. Bb2 {[%emt 0:00:17]} e4 {[%emt 0:00:30]} 29. Nc5 {[%emt 0:00:38]} Bc8 {[%emt 0:00:25]} 30. Be2 {[%emt 0:00:21]} Kf7 {[%emt 0:00:12]} 31. Bc1 {[%emt 0:00:08]} Nd7 {[%emt 0:00:12]} 32. Nxd7 Bxd7 {[%emt 0:00:20]} 33. Kg2 {[%emt 0:00:02]} a5 {[%emt 0:00:12]} 34. Be3 {[%emt 0:00:19]} Kg6 {[%emt 0:00:27]} 35. Kg1 {[%emt 0:00:27]} Bc7 {[%emt 0:00:27]} 36. Kg2 {[%emt 0:00:01]} h5 {[%emt 0:00:13]} 37. Kg1 {[%emt 0:00:05]} Bb8 {[%emt 0:00:21]} 38. Kg2 {[%emt 0:00:00]} Bd6 {[%emt 0:00:28]} 39. Kg1 {[%emt 0:00:01]} 1/2-1/2

[Event "FishPartners Open 2018"]
[Site "Spakenburg"]
[Date "2018.07.07"]
[Round "3"]
[White "Bosboom, Manuel"]
[Black "Timman, Jan"]
[Result "1/2-1/2"]
[ECO "A01"]
[WhiteElo "2403"]
[BlackElo "2555"]
[Annotator "ChessBase"]
[PlyCount "111"]
[EventDate "2018.07.07"]
[EventType "swiss"]
[EventCountry "NED"]
[SourceTitle "playchess.com"]
[Source "ChessBase"]
[SourceQuality "1"]
[TimeControl "1500"]

1. c4 {[%emt 0:00:03]} e5 {[%emt 0:00:04]} 2. b3 {[%emt 0:00:01]} Nf6 {[%emt 0:00:12]} 3. Bb2 {[%emt 0:00:01]} Nc6 {[%emt 0:00:02]} 4. e3 {[%emt 0:00:03]} d5 {[%emt 0:00:05]} 5. cxd5 {[%emt 0:00:01]} Nxd5 {[%emt 0:00:03]} 6. a3 {[%emt 0:00:02]} Bd6 {[%emt 0:00:14]} 7. Qc2 {[%emt 0:00:08]} O-O {[%emt 0:00:11]} 8. Nf3 {[%emt 0:00:02]} Kh8 {[%emt 0:00:12]} 9. h4 {[%emt 0:00:25]} Qe7 {[%emt 0:00:14]} 10. Bc4 {[%emt 0:00:40]} Nb6 {[%emt 0:00:13]} 11. Ng5 {[%emt 0:00:23]} f5 {[%emt 0:00:14]} 12. Nc3 {[%emt 0:00:14]} Nxc4 {[%emt 0:01:23]} 13. bxc4 {[%emt 0:00:01]} Be6 {[%emt 0:00:19]} 14. Nd5 {[%emt 0:00:09]} Bxd5 {[%emt 0:00:02]} 15. cxd5 {[%emt 0:00:01]} Nd8 {[%emt 0:00:03]} 16. g4 {[%emt 0:00:35]} Qd7 {[%emt 0:02:41]} 17. gxf5 {[%emt 0:00:32]} Qxf5 {[%emt 0:00:02]} 18. Qxf5 {[%emt 0:00:19]} Rxf5 {[%emt 0:00:02]} 19. Ke2 {[%emt 0:00:07]} h6 {[%emt 0:00:03]} 20. Ne4 {[%emt 0:00:02]} Nf7 {[%emt 0:00:02]} 21. a4 {[%emt 0:00:02]} Rd8 {[%emt 0:00:30]} 22. Rac1 {[%emt 0:00:30]} Rd7 {[%emt 0:00:16]} 23. Rhg1 {[%emt 0:01:05]} Bf8 {[%emt 0:00:35]} 24. Rg6 {[%emt 0:00:46]} Rh5 {[%emt 0:01:44]} 25. Rh1 {[%emt 0:01:03]} Kh7 {[%emt 0:01:15]} 26. Re6 {[%emt 0:02:08]} Rf5 {[%emt 0:00:01]} 27. Ng3 {[%emt 0:00:24]} Rf6 {[%emt 0:00:03]} 28. Ne4 {[%emt 0:00:44]} Rf5 {[%emt 0:00:02]} 29. Ng3 {[%emt 0:02:04]} Rf6 {[%emt 0:00:02]} 30. e4 {[%emt 0:01:38]} Bc5 {[%emt 0:02:37]} 31. Nf5 {[%emt 0:01:18]} Nd6 {[%emt 0:00:37]} 32. Bxe5 {[%emt 0:00:41]} Rxf5 {[%emt 0:00:13]} 33. exf5 {[%emt 0:00:24]} Nxf5 {[%emt 0:00:02]} 34. Kd3 {[%emt 0:01:13]} Ne7 {[%emt 0:02:23]} 35. Ke4 {[%emt 0:00:54]} Nxd5 {[%emt 0:00:14]} 36. f4 {[%emt 0:00:15]} c6 {[%emt 0:00:18]} 37. h5 {[%emt 0:00:03]} a5 {[%emt 0:00:52]} 38. Rh3 {[%emt 0:00:07]} Bb4 {[%emt 0:00:17]} 39. Rg3 {[%emt 0:00:17]} Rf7 {[%emt 0:00:27]} 40. Rg2 {[%emt 0:00:43]} Nb6 {[%emt 0:00:07]} 41. f5 {[%emt 0:00:07]} Nxa4 {[%emt 0:00:18]} 42. f6 {[%emt 0:00:38]} Nc5+ {[%emt 0:00:28]} 43. Kf5 {[%emt 0:00:00]} Nxe6 {[%emt 0:00:15]} 44. Kxe6 {[%emt 0:00:01]} Kg8 {[%emt 0:00:01]} 45. fxg7 {[%emt 0:00:49]} a4 {[%emt 0:00:58]} 46. Rg4 {[%emt 0:00:35]} Re7+ {[%emt 0:00:22]} 47. Kf6 {[%emt 0:00:02]} Rxe5 {[%emt 0:00:40]} 48. Rxb4 {[%emt 0:00:39]} Rd5 {[%emt 0:00:11]} 49. Rxb7 Rd6+ {[%emt 0:00:01]} 50. Kf5 {[%emt 0:00:15]} Rxd2 {[%emt 0:00:07]} 51. Ra7 {[%emt 0:00:01]} Rd5+ {[%emt 0:00:04]} 52. Kg6 {[%emt 0:00:02]} Rd6+ 53. Kf5 a3 {[%emt 0:00:04]} 54. Ke5 {[%emt 0:00:05]} Rd8 {[%emt 0:00:05]} 55. Kf6 {[%emt 0:00:04]} Rd6+ {[%emt 0:00:02]} 56. Ke5 {[%emt 0:00:01]} 1/2-1/2

[Event "FishPartners Open 2018"]
[Site "Spakenburg"]
[Date "2018.07.07"]
[Round "3"]
[White "Van der Wiel, John T H"]
[Black "Van Foreest, Lucas"]
[Result "0-1"]
[ECO "C67"]
[WhiteElo "2389"]
[BlackElo "2488"]
[Annotator "ChessBase"]
[PlyCount "76"]
[EventDate "2018.07.07"]
[EventType "swiss"]
[EventCountry "NED"]
[SourceTitle "playchess.com"]
[Source "ChessBase"]
[SourceQuality "1"]
[TimeControl "1500"]

1. e4 {[%emt 0:00:02]} e5 {[%emt 0:00:00]} 2. Nf3 {[%emt 0:00:02]} Nc6 {[%emt 0:00:01]} 3. Bb5 {[%emt 0:00:08]} Nf6 {[%emt 0:00:01]} 4. O-O {[%emt 0:00:07]} Nxe4 {[%emt 0:00:00]} 5. d4 {[%emt 0:00:03]} Nd6 {[%emt 0:00:01]} 6. Bxc6 {[%emt 0:00:04]} dxc6 {[%emt 0:00:02]} 7. dxe5 {[%emt 0:00:03]} Nf5 {[%emt 0:00:01]} 8. Qxd8+ {[%emt 0:00:01]} Kxd8 {[%emt 0:00:01]} 9. b3 {[%emt 0:00:19]} b6 {[%emt 0:00:06]} 10. Rd1+ {[%emt 0:00:13]} Ke8 {[%emt 0:00:02]} 11. Ba3 {[%emt 0:00:18]} Bxa3 {[%emt 0:00:33]} 12. Nxa3 {[%emt 0:00:01]} a5 {[%emt 0:00:29]} 13. Nd4 {[%emt 0:01:01]} Nxd4 {[%emt 0:00:36]} 14. Rxd4 {[%emt 0:00:03]} Be6 {[%emt 0:05:39]} 15. Rad1 {[%emt 0:00:46]} Ke7 {[%emt 0:00:31]} 16. Nc4 {[%emt 0:02:51]} a4 {[%emt 0:03:46]} 17. Ne3 {[%emt 0:01:03]} axb3 {[%emt 0:00:06]} 18. axb3 {[%emt 0:00:02]} g5 {[%emt 0:00:03]} 19. b4 {[%emt 0:02:13]} Ra3 {[%emt 0:00:57]} 20. g4 {[%emt 0:00:44]} Re8 {[%emt 0:01:13]} 21. Kg2 {[%emt 0:01:22]} Rc3 {[%emt 0:02:43]} 22. R4d3 {[%emt 0:04:33]} Rxd3 {[%emt 0:00:02]} 23. Rxd3 {[%emt 0:00:01]} Kf8 {[%emt 0:00:20]} 24. Kg3 {[%emt 0:00:25]} Ra8 {[%emt 0:00:45]} 25. h4 {[%emt 0:00:20]} h6 {[%emt 0:00:14]} 26. Rc3 {[%emt 0:01:02]} c5 {[%emt 0:00:18]} 27. bxc5 {[%emt 0:00:08]} b5 {[%emt 0:00:44]} 28. Nf5 {[%emt 0:00:57]} gxh4+ {[%emt 0:00:51]} 29. Kxh4 {[%emt 0:00:11]} Ra4 {[%emt 0:00:24]} 30. Nxh6 {[%emt 0:00:32]} Re4 {[%emt 0:00:02]} 31. Re3 {[%emt 0:00:32]} Rc4 {[%emt 0:00:19]} 32. c3 {[%emt 0:00:16]} Kg7 {[%emt 0:01:09]} 33. Kg5 {[%emt 0:00:24]} Rxc5 {[%emt 0:00:02]} 34. Nf5+ {[%emt 0:00:06]} Kf8 {[%emt 0:00:02]} 35. f4 {[%emt 0:00:51]} Rd5 {[%emt 0:00:13]} 36. Rh3 {[%emt 0:00:49]} Ke8 {[%emt 0:00:01]} 37. Ne3 {[%emt 0:00:34]} Rc5 {[%emt 0:00:05]} 38. f5 {[%emt 0:00:09]} Bb3 {[%emt 0:00:25]} 0-1

[Event "FishPartners Open 2018"]
[Site "Spakenburg"]
[Date "2018.07.07"]
[Round "3"]
[White "Vedder, Henk"]
[Black "Bohm, Hans"]
[Result "0-1"]
[ECO "B01"]
[WhiteElo "2333"]
[BlackElo "2307"]
[Annotator "NA"]
[PlyCount "142"]
[EventDate "2018.07.07"]
[EventType "swiss"]
[EventCountry "NED"]
[SourceTitle "playchess.com"]
[Source "ChessBase"]
[SourceQuality "1"]
[TimeControl "1500"]

1. e4 {[%emt 0:00:01]} d5 {[%emt 0:00:03]} 2. exd5 {[%emt 0:00:02]} Qxd5 {[%emt 0:00:01]} 3. Nf3 {[%emt 0:00:02]} Nf6 {[%emt 0:00:11]} 4. d4 {[%emt 0:00:03]} Bg4 {[%emt 0:00:15]} 5. Be2 {[%emt 0:00:02]} e6 {[%emt 0:00:03]} 6. O-O {[%emt 0:00:07]} c6 {[%emt 0:00:15]} 7. c4 {[%emt 0:00:02]} Qd8 {[%emt 0:00:08]} 8. Nc3 {[%emt 0:00:10]} Be7 {[%emt 0:00:37]} 9. Bf4 {[%emt 0:00:36]} O-O {[%emt 0:00:11]} 10. h3 {[%emt 0:00:03]} Bh5 {[%emt 0:00:01]} 11. Qb3 {[%emt 0:00:44]} Qb6 {[%emt 0:00:14]} 12. Rad1 {[%emt 0:00:26]} Qxb3 {[%emt 0:00:27]} 13. axb3 {[%emt 0:00:01]} Nbd7 {[%emt 0:00:06]} 14. Rfe1 {[%emt 0:00:06]} Bb4 {[%emt 0:00:19]} 15. Ne5 {[%emt 0:01:55]} Bxe2 {[%emt 0:00:34]} 16. Rxe2 {[%emt 0:00:01]} Rfd8 {[%emt 0:01:28]} 17. Nd3 {[%emt 0:00:54]} Bf8 {[%emt 0:00:05]} 18. Ra1 {[%emt 0:01:43]} a6 {[%emt 0:01:04]} 19. Be3 {[%emt 0:00:53]} Bd6 {[%emt 0:01:35]} 20. g4 {[%emt 0:02:08]} e5 {[%emt 0:01:16]} 21. dxe5 {[%emt 0:00:06]} Nxe5 {[%emt 0:00:01]} 22. Nxe5 {[%emt 0:00:12]} Bxe5 {[%emt 0:00:01]} 23. Bb6 {[%emt 0:00:52]} Re8 {[%emt 0:00:04]} 24. Rd2 {[%emt 0:00:28]} h5 {[%emt 0:02:18]} 25. f3 {[%emt 0:00:56]} Bf4 {[%emt 0:00:43]} 26. Rd3 {[%emt 0:00:02]} Re7 {[%emt 0:00:53]} 27. Bd8 {[%emt 0:01:39]} Rd7 {[%emt 0:01:11]} 28. Rxd7 {[%emt 0:00:02]} Nxd7 {[%emt 0:00:02]} 29. Bh4 {[%emt 0:00:33]} Nc5 {[%emt 0:01:31]} 30. Bf2 {[%emt 0:00:08]} Nxb3 {[%emt 0:00:11]} 31. Rd1 {[%emt 0:00:02]} Nd2 {[%emt 0:00:30]} 32. Kg2 {[%emt 0:00:13]} Nxc4 {[%emt 0:00:27]} 33. Rd7 {[%emt 0:00:52]} b5 {[%emt 0:00:21]} 34. b3 {[%emt 0:00:23]} Ne5 {[%emt 0:01:04]} 35. Rb7 {[%emt 0:00:04]} a5 {[%emt 0:00:26]} 36. Bd4 {[%emt 0:00:32]} hxg4 {[%emt 0:01:42]} 37. hxg4 {[%emt 0:00:02]} a4 {[%emt 0:00:10]} 38. bxa4 {[%emt 0:00:07]} bxa4 {[%emt 0:00:01]} 39. Ne2 {[%emt 0:01:06]} Ng6 {[%emt 0:00:01]} 40. Rb2 {[%emt 0:00:02]} Be5 {[%emt 0:00:09]} 41. Ra2 {[%emt 0:00:02]} Nf4+ {[%emt 0:00:20]} 42. Nxf4 {[%emt 0:00:49]} Bxd4 {[%emt 0:00:07]} 43. Kf1 {[%emt 0:00:04]} a3 {[%emt 0:00:06]} 44. Ke2 {[%emt 0:00:02]} Bb2 {[%emt 0:00:10]} 45. Nd3 {[%emt 0:00:02]} Rb8 {[%emt 0:00:02]} 46. Kd2 {[%emt 0:00:01]} Kh7 {[%emt 0:00:12]} 47. Kc2 {[%emt 0:00:09]} Rb5 {[%emt 0:00:15]} 48. f4 {[%emt 0:00:07]} Kh6 {[%emt 0:00:09]} 49. Kd2 {[%emt 0:00:16]} g5 {[%emt 0:00:15]} 50. f5 {[%emt 0:00:02]} Kg7 {[%emt 0:00:20]} 51. Nf2 {[%emt 0:00:21]} Rb4 {[%emt 0:00:06]} 52. Kd3 {[%emt 0:00:15]} Rf4 {[%emt 0:00:17]} 53. Ke2 {[%emt 0:00:10]} Kf6 {[%emt 0:00:19]} 54. Nd3 {[%emt 0:00:14]} Rxg4 {[%emt 0:00:03]} 55. Kf3 {[%emt 0:00:01]} Rh4 {[%emt 0:00:19]} 56. Nxb2 {[%emt 0:00:02]} axb2 {[%emt 0:00:04]} 57. Rxb2 {[%emt 0:00:01]} Kxf5 {[%emt 0:00:01]} 58. Rc2 {[%emt 0:00:09]} Rh3+ {[%emt 0:00:02]} 59. Kg2 {[%emt 0:00:00]} Ra3 {[%emt 0:00:03]} 60. Rxc6 {[%emt 0:00:02]} f6 {[%emt 0:00:06]} 61. Kf2 {[%emt 0:00:03]} g4 {[%emt 0:00:03]} 62. Rc5+ {[%emt 0:00:05]} Kf4 {[%emt 0:00:01]} 63. Rc4+ {[%emt 0:00:01]} Kg5 {[%emt 0:00:01]} 64. Rc8 {[%emt 0:00:02]} f5 {[%emt 0:00:01]} 65. Kg2 {[%emt 0:00:01]} Ra2+ {[%emt 0:00:01]} 66. Kf1 {[%emt 0:00:02]} Kh4 {[%emt 0:00:02]} 67. Rf8 {[%emt 0:00:01]} Kg5 {[%emt 0:00:04]} 68. Rc8 {[%emt 0:00:03]} g3 {[%emt 0:00:02]} 69. Rg8+ {[%emt 0:00:16]} Kf4 {[%emt 0:00:01]} 70. Rc8 {[%emt 0:00:01]} Kf3 {[%emt 0:00:01]} 71. Rc3+ {[%emt 0:00:02]} Kg4 {[%emt 0:00:01]} 0-1

[Event "FishPartners Open 2018"]
[Site "Spakenburg"]
[Date "2018.07.07"]
[Round "3"]
[White "Ree, Hans"]
[Black "Vedder, Richard"]
[Result "1-0"]
[ECO "A25"]
[WhiteElo "2303"]
[BlackElo "2284"]
[Annotator "NA"]
[PlyCount "87"]
[EventDate "2018.07.07"]
[EventType "swiss"]
[EventCountry "NED"]
[SourceTitle "playchess.com"]
[Source "ChessBase"]
[SourceQuality "1"]
[TimeControl "1500"]

1. c4 {[%emt 0:00:03]} e5 {[%emt 0:00:01]} 2. Nc3 Nc6 {[%emt 0:00:02]} 3. g3 {[%emt 0:00:07]} g6 {[%emt 0:00:06]} 4. Bg2 {[%emt 0:00:03]} Bg7 {[%emt 0:00:02]} 5. e3 {[%emt 0:00:14]} Nge7 {[%emt 0:00:06]} 6. Nge2 {[%emt 0:00:03]} O-O {[%emt 0:00:03]} 7. d3 {[%emt 0:00:09]} d6 {[%emt 0:00:17]} 8. b3 {[%emt 0:00:20]} Be6 {[%emt 0:00:09]} 9. Ba3 {[%emt 0:00:21]} Qd7 {[%emt 0:00:07]} 10. h3 {[%emt 0:00:09]} Rfd8 {[%emt 0:01:13]} 11. Nd5 {[%emt 0:00:16]} Re8 {[%emt 0:02:33]} 12. Rc1 {[%emt 0:00:20]} Nd8 {[%emt 0:00:03]} 13. g4 {[%emt 0:00:50]} c6 {[%emt 0:00:12]} 14. Ndc3 {[%emt 0:00:12]} f5 {[%emt 0:00:12]} 15. g5 {[%emt 0:00:32]} f4 {[%emt 0:00:53]} 16. exf4 {[%emt 0:00:24]} exf4 {[%emt 0:00:14]} 17. Ne4 {[%emt 0:00:50]} Nf5 {[%emt 0:00:25]} 18. h4 {[%emt 0:00:11]} d5 {[%emt 0:00:32]} 19. cxd5 {[%emt 0:00:58]} cxd5 {[%emt 0:00:01]} 20. Nc5 {[%emt 0:00:10]} Qf7 {[%emt 0:00:24]} 21. Bf3 {[%emt 0:01:35]} Nd4 {[%emt 0:01:02]} 22. Nxd4 {[%emt 0:00:07]} Bxd4 {[%emt 0:00:02]} 23. Kf1 {[%emt 0:00:09]} Bf5 {[%emt 0:00:46]} 24. Qd2 {[%emt 0:00:38]} Nc6 {[%emt 0:01:11]} 25. Kg2 {[%emt 0:02:25]} Ne5 {[%emt 0:00:34]} 26. b4 {[%emt 0:01:11]} Nxf3 {[%emt 0:00:54]} 27. Kxf3 {[%emt 0:00:03]} Be3 {[%emt 0:00:17]} 28. fxe3 {[%emt 0:01:28]} fxe3 {[%emt 0:00:02]} 29. Qh2 {[%emt 0:00:08]} Bxd3+ {[%emt 0:01:21]} 30. Qf4 {[%emt 0:00:14]} Be2+ {[%emt 0:00:52]} 31. Kg3 {[%emt 0:00:05]} Qxf4+ {[%emt 0:00:06]} 32. Kxf4 {[%emt 0:00:02]} Re7 {[%emt 0:00:02]} 33. Bb2 {[%emt 0:00:23]} b6 {[%emt 0:00:14]} 34. Nb3 {[%emt 0:00:06]} Re4+ {[%emt 0:00:16]} 35. Kg3 {[%emt 0:00:05]} Rg4+ {[%emt 0:00:08]} 36. Kh3 {[%emt 0:00:03]} Re8 {[%emt 0:00:09]} 37. Nd4 {[%emt 0:00:46]} Ree4 {[%emt 0:02:16]} 38. Nxe2 {[%emt 0:00:12]} Rxh4+ {[%emt 0:00:01]} 39. Kg2 {[%emt 0:00:20]} Rhg4+ {[%emt 0:00:02]} 40. Kf3 {[%emt 0:00:24]} Rxg5 {[%emt 0:00:05]} 41. Rc8+ {[%emt 0:00:09]} Kf7 {[%emt 0:00:02]} 42. Rxh7+ {[%emt 0:00:04]} Ke6 {[%emt 0:00:01]} 43. Rc6+ {[%emt 0:00:42]} Kf5 {[%emt 0:00:04]} 44. Rf7# {[%emt 0:00:03]} 1-0